[Event "NOR-chT Eliteserien 2018-19"]
[Site "Norway"]
[Date "2019.03.08"]
[Round "7.1"]
[White "Notkevich, Benjamin Arvola"]
[Black "Lie, Espen"]
[Result "1/2-1/2"]
[ECO "B04"]
[WhiteElo "2495"]
[BlackElo "2492"]
[Annotator "RC"]
[PlyCount "81"]
[EventDate "2018.11.02"]
[EventType "team-tourn"]
[EventCountry "NOR"]
[SourceTitle "playchess.com"]
[Source "ChessBase"]
[SourceQuality "1"]
[TimeControl "40/5400+30:1800+30"]

1. e4 {[%emt 0:00:00]} Nf6 {[%emt 0:00:00]} 2. e5 {[%emt 0:00:00]} Nd5 {[%emt 0:00:00]} 3. d4 {[%emt 0:00:00]} d6 {[%emt 0:00:00]} 4. Nf3 {[%emt 0:00:00]} dxe5 {[%emt 0:00:31]} 5. Nxe5 {[%emt 0:00:00]} c6 {[%emt 0:00:45]} 6. Be2 {[%emt 0:00:43]} Bf5 {[%emt 0:02:11]} 7. O-O {[%emt 0:02:13]} Nd7 {[%emt 0:00:47]} 8. Nf3 {[%emt 0:00:14]} e6 {[%emt 0:02:37]} 9. c4 {[%emt 0:07:15]} N5f6 {[%emt 0:01:30]} 10. Nc3 {[%emt 0:00:56]} Bd6 {[%emt 0:02:14]} 11. Nh4 {[%emt 0:07:48]} Bg6 {[%emt 0:03:50]} 12. g3 {[%emt 0:00:28]} O-O {[%emt 0:05:04]} 13. Be3 {[%emt 0:09:49]} Re8 {[%emt 0:09:18]} 14. Nxg6 {[%emt 0:00:05]} hxg6 {[%emt 0:00:37]} 15. Rc1 {[%emt 0:08:08]} e5 {[%emt 0:04:19]} 16. d5 {[%emt 0:02:25]} c5 {[%emt 0:00:23]} 17. f3 {[%emt 0:07:30]} Nh5 {[%emt 0:06:38]} 18. Qd2 {[%emt 0:06:36]} f5 {[%emt 0:11:35]} 19. Kg2 {[%emt 0:01:50]} a6 {[%emt 0:03:21]} 20. Rce1 {[%emt 0:00:25]} Ndf6 {[%emt 0:01:34]} 21. Bd1 {[%emt 0:07:54]} Kf7 {[%emt 0:05:27]} 22. Bc2 {[%emt 0:05:09]} Qc8 {[%emt 0:11:05]} 23. Bg5 {[%emt 0:07:30]} Rh8 {[%emt 0:02:19]} 24. Qd3 {[%emt 0:02:21]} Qg8 {[%emt 0:05:14]} 25. g4 {[%emt 0:13:07]} Nf4+ {[%emt 0:01:53]} 26. Bxf4 {[%emt 0:00:26]} exf4 {[%emt 0:00:20]} 27. gxf5 {[%emt 0:01:11]} g5 {[%emt 0:00:45]} 28. Kg1 {[%emt 0:02:54]} Qh7 {[%emt 0:02:11]} 29. Rf2 {[%emt 0:00:12]} g4 {[%emt 0:02:35]} 30. Re6 {[%emt 0:02:49]} g3 {[%emt 0:04:29]} 31. Rg2 {[%emt 0:00:05]} Rae8 {[%emt 0:03:48]} 32. Qe2 {[%emt 0:02:41]} Qh3 {[%emt 0:00:19]} 33. Ne4 {[%emt 0:00:21]} Nxe4 {[%emt 0:00:19]} 34. Bxe4 {[%emt 0:00:06]} Be5 {[%emt 0:00:26]} 35. Kh1 {[%emt 0:01:54]} Bd4 {[%emt 0:02:52]} 36. Rb6 {[%emt 0:02:12]} Rxe4 {[%emt 0:02:06]} 37. Rxb7+ {[%emt 0:00:05]} Kf8 {[%emt 0:01:52]} 38. Rb8+ {[%emt 0:00:08]} Kf7 {[%emt 0:00:04]} 39. Rb7+ {[%emt 0:00:08]} Kf8 {[%emt 0:01:47]} 40. Rb8+ {[%emt 0:00:37]} Kf7 {[%emt 0:00:05]} 41. Rb7+ {[%emt 0:00:32]} 1/2-1/2

[Event "NOR-chT Eliteserien 2018-19"]
[Site "Norway"]
[Date "2019.03.08"]
[Round "7.2"]
[White "Hobber, Anders"]
[Black "Vestby-Ellingsen, Mads"]
[Result "0-1"]
[ECO "A48"]
[WhiteElo "2310"]
[BlackElo "2358"]
[Annotator "RC"]
[PlyCount "81"]
[EventDate "2018.11.02"]
[EventType "team-tourn"]
[EventCountry "NOR"]
[SourceTitle "playchess.com"]
[Source "ChessBase"]
[SourceQuality "1"]
[TimeControl "40/5400+30:1800+30"]

1. d4 {[%emt 0:00:00]} Nf6 {[%emt 0:00:00]} 2. Nf3 {[%emt 0:00:00]} g6 {[%emt 0:00:00]} 3. c3 {[%emt 0:00:18]} Bg7 {[%emt 0:00:23]} 4. Bg5 {[%emt 0:01:54]} O-O {[%emt 0:01:23]} 5. Nbd2 {[%emt 0:00:50]} d6 {[%emt 0:00:26]} 6. e4 {[%emt 0:00:43]} c5 {[%emt 0:00:38]} 7. dxc5 {[%emt 0:00:11]} dxc5 {[%emt 0:00:09]} 8. Bc4 {[%emt 0:00:27]} Nc6 {[%emt 0:01:02]} 9. Qe2 {[%emt 0:03:19]} Qc7 {[%emt 0:06:02]} 10. O-O {[%emt 0:01:48]} Na5 {[%emt 0:00:53]} 11. Bd3 {[%emt 0:02:31]} b6 {[%emt 0:01:45]} 12. e5 {[%emt 0:10:51]} Nd5 {[%emt 0:01:43]} 13. Be4 {[%emt 0:09:08]} Bb7 {[%emt 0:01:56]} 14. c4 {[%emt 0:01:56]} Nb4 {[%emt 0:00:34]} 15. Bxb7 {[%emt 0:15:03]} Qxb7 {[%emt 0:01:16]} 16. a3 {[%emt 0:03:14]} Nbc6 {[%emt 0:00:32]} 17. Rae1 {[%emt 0:08:19]} Rfe8 {[%emt 0:13:30]} 18. Qe4 {[%emt 0:15:47]} Rad8 {[%emt 0:03:04]} 19. Qh4 {[%emt 0:03:00]} Nd4 {[%emt 0:06:14]} 20. Re4 {[%emt 0:03:47]} Nf5 {[%emt 0:05:19]} 21. Qh3 {[%emt 0:01:39]} Nb3 {[%emt 0:02:11]} 22. Rfe1 {[%emt 0:00:44]} Rd3 {[%emt 0:05:00]} 23. Nxb3 {[%emt 0:08:27]} Rxb3 {[%emt 0:00:45]} 24. Qg4 {[%emt 0:00:59]} Rxb2 {[%emt 0:08:26]} 25. Bc1 {[%emt 0:00:07]} Rc2 {[%emt 0:00:44]} 26. Ng5 {[%emt 0:03:22]} h6 {[%emt 0:16:21]} 27. Nh3 {[%emt 0:01:58]} e6 {[%emt 0:15:55]} 28. Qd1 {[%emt 0:00:22]} Nd4 {[%emt 0:00:31]} 29. Rh4 {[%emt 0:02:35]} Rxc4 {[%emt 0:01:37]} 30. Kh1 {[%emt 0:00:01]} Qe7 {[%emt 0:00:59]} 31. Ree4 {[%emt 0:01:15]} Rd8 {[%emt 0:00:46]} 32. Qf1 {[%emt 0:00:29]} Nf5 {[%emt 0:01:30]} 33. Qxc4 {[%emt 0:00:36]} Rd1+ {[%emt 0:00:26]} 34. Ng1 {[%emt 0:00:03]} Nxh4 {[%emt 0:00:31]} 35. Bxh6 {[%emt 0:00:29]} Bxh6 {[%emt 0:01:14]} 36. Rxh4 {[%emt 0:00:03]} Qg5 {[%emt 0:00:56]} 37. g3 {[%emt 0:01:28]} Qxe5 {[%emt 0:00:39]} 38. Rxh6 {[%emt 0:00:39]} Qe1 {[%emt 0:00:23]} 39. Kg2 {[%emt 0:00:31]} Qxg1+ {[%emt 0:00:10]} 40. Kf3 {[%emt 0:00:14]} Qh1+ {[%emt 0:00:23]} 41. Ke3 {[%emt 0:30:37]} 0-1

[Event "NOR-chT Eliteserien 2018-19"]
[Site "Norway"]
[Date "2019.03.08"]
[Round "7.3"]
[White "Lund, Gunnar"]
[Black "Hole, Oystein"]
[Result "1/2-1/2"]
[ECO "B13"]
[WhiteElo "2228"]
[BlackElo "2299"]
[Annotator "ChessBase"]
[PlyCount "83"]
[EventDate "2018.11.02"]
[EventType "team-tourn"]
[EventCountry "NOR"]
[SourceTitle "playchess.com"]
[Source "ChessBase"]
[SourceQuality "1"]
[TimeControl "40/5400+30:1800+30"]

1. e4 {[%emt 0:00:00]} c6 {[%emt 0:00:00]} 2. d4 {[%emt 0:00:00]} d5 {[%emt 0:00:00]} 3. exd5 {[%emt 0:00:00]} cxd5 {[%emt 0:00:00]} 4. Bd3 {[%emt 0:00:00]} Nc6 {[%emt 0:00:00]} 5. c3 {[%emt 0:00:00]} Qc7 {[%emt 0:00:16]} 6. Ne2 {[%emt 0:00:07]} Bg4 {[%emt 0:00:42]} 7. O-O {[%emt 0:00:09]} e6 {[%emt 0:00:32]} 8. Qe1 {[%emt 0:00:06]} Bxe2 {[%emt 0:10:08]} 9. Qxe2 {[%emt 0:00:17]} Bd6 {[%emt 0:00:37]} 10. h3 {[%emt 0:02:24]} Nf6 {[%emt 0:03:19]} 11. Nd2 {[%emt 0:01:47]} O-O {[%emt 0:06:17]} 12. Nf3 {[%emt 0:02:14]} e5 {[%emt 0:03:47]} 13. Nxe5 {[%emt 0:10:08]} Nxe5 {[%emt 0:00:29]} 14. dxe5 {[%emt 0:00:09]} Bxe5 {[%emt 0:00:07]} 15. Be3 {[%emt 0:01:48]} Rfe8 {[%emt 0:00:46]} 16. Qf3 {[%emt 0:03:07]} Rad8 {[%emt 0:02:40]} 17. Rad1 {[%emt 0:02:21]} a6 {[%emt 0:02:12]} 18. Bc2 {[%emt 0:04:53]} Re7 {[%emt 0:05:25]} 19. Bb3 {[%emt 0:01:48]} Red7 {[%emt 0:01:12]} 20. Bd4 {[%emt 0:02:20]} Bxd4 {[%emt 0:02:46]} 21. Rxd4 {[%emt 0:00:44]} b5 {[%emt 0:04:43]} 22. Rfd1 {[%emt 0:01:28]} Qc5 {[%emt 0:05:23]} 23. a3 {[%emt 0:04:13]} h6 {[%emt 0:01:39]} 24. g3 {[%emt 0:07:05]} Rd6 {[%emt 0:01:37]} 25. Kg2 {[%emt 0:00:21]} R8d7 {[%emt 0:04:13]} 26. Ba2 {[%emt 0:03:18]} Rd8 {[%emt 0:02:37]} 27. Qf5 {[%emt 0:01:03]} Qc6 {[%emt 0:01:49]} 28. Kg1 {[%emt 0:03:14]} R6d7 {[%emt 0:03:11]} 29. Bb1 {[%emt 0:04:09]} Qe6 {[%emt 0:05:41]} 30. Qf3 {[%emt 0:00:29]} Re7 {[%emt 0:02:50]} 31. Qg2 {[%emt 0:00:41]} Qe2 {[%emt 0:02:55]} 32. R4d2 {[%emt 0:00:28]} Qc4 {[%emt 0:01:31]} 33. Bd3 {[%emt 0:25:43]} Qc5 {[%emt 0:02:46]} 34. Bc2 {[%emt 0:06:33]} Qc4 {[%emt 0:06:04]} 35. Bd3 {[%emt 0:00:26]} Qc5 {[%emt 0:00:17]} 36. Bc2 {[%emt 0:11:05]} Qc4 {[%emt 0:00:14]} 37. Qf1 {[%emt 0:01:00]} Qxf1+ {[%emt 0:08:15]} 38. Kxf1 {[%emt 0:00:09]} Kf8 {[%emt 0:00:09]} 39. a4 {[%emt 0:00:57]} bxa4 {[%emt 0:02:35]} 40. Bxa4 {[%emt 0:00:45]} Rb8 {[%emt 0:00:09]} 41. Bc6 {[%emt 0:31:36]} Rc7 {[%emt 0:30:46]} 42. Bxd5 {[%emt 0:00:19]} 1/2-1/2

[Event "NOR-chT Eliteserien 2018-19"]
[Site "Norway"]
[Date "2019.03.08"]
[Round "7.4"]
[White "Skrondal, Inge Sandstad"]
[Black "Machlik, Edit"]
[Result "1-0"]
[ECO "B13"]
[WhiteElo "2281"]
[BlackElo "2112"]
[Annotator "RC"]
[PlyCount "99"]
[EventDate "2018.11.02"]
[EventType "team-tourn"]
[EventCountry "NOR"]
[SourceTitle "playchess.com"]
[Source "ChessBase"]
[SourceQuality "1"]
[TimeControl "40/5400+30:1800+30"]

1. e4 {[%emt 0:00:00]} c6 {[%emt 0:00:00]} 2. d4 {[%emt 0:00:00]} d5 {[%emt 0:00:00]} 3. exd5 {[%emt 0:00:00]} cxd5 {[%emt 0:00:00]} 4. Bd3 {[%emt 0:00:03]} Nc6 {[%emt 0:00:33]} 5. c3 {[%emt 0:00:04]} Nf6 {[%emt 0:01:13]} 6. Bf4 {[%emt 0:00:20]} g6 {[%emt 0:02:51]} 7. Nd2 {[%emt 0:00:05]} Bg7 {[%emt 0:00:48]} 8. Ngf3 {[%emt 0:00:30]} O-O {[%emt 0:02:02]} 9. h3 {[%emt 0:00:31]} Re8 {[%emt 0:06:07]} 10. O-O {[%emt 0:03:33]} Bf5 {[%emt 0:00:25]} 11. Be2 {[%emt 0:00:42]} Rc8 {[%emt 0:06:07]} 12. Re1 {[%emt 0:02:00]} a6 {[%emt 0:05:49]} 13. Nf1 {[%emt 0:03:10]} Ne4 {[%emt 0:01:57]} 14. Ne3 {[%emt 0:01:57]} Nf6 {[%emt 0:27:25]} 15. Nxf5 {[%emt 0:03:25]} gxf5 {[%emt 0:00:03]} 16. Bd3 {[%emt 0:00:44]} e6 {[%emt 0:01:31]} 17. Qd2 {[%emt 0:09:25]} Ne4 {[%emt 0:03:41]} 18. Qe3 {[%emt 0:00:39]} Kh8 {[%emt 0:03:28]} 19. Ng5 {[%emt 0:09:14]} Nxg5 {[%emt 0:03:18]} 20. Bxg5 {[%emt 0:00:06]} Bf6 {[%emt 0:00:44]} 21. Bf4 {[%emt 0:02:47]} Rg8 {[%emt 0:01:03]} 22. Rac1 {[%emt 0:19:40]} Bg5 {[%emt 0:02:33]} 23. Be2 {[%emt 0:11:14]} Bxf4 {[%emt 0:01:39]} 24. Qxf4 {[%emt 0:00:13]} Qg5 {[%emt 0:03:05]} 25. Qxg5 {[%emt 0:02:47]} Rxg5 {[%emt 0:00:01]} 26. Kf1 {[%emt 0:00:13]} Rgg8 {[%emt 0:11:43]} 27. Bd3 {[%emt 0:02:56]} Ne7 {[%emt 0:02:18]} 28. g3 {[%emt 0:01:34]} Rg7 {[%emt 0:03:58]} 29. Ke2 {[%emt 0:01:24]} Ng8 {[%emt 0:03:15]} 30. c4 {[%emt 0:07:52]} dxc4 {[%emt 0:02:26]} 31. Rxc4 {[%emt 0:02:17]} Rxc4 {[%emt 0:00:29]} 32. Bxc4 {[%emt 0:00:01]} Nf6 {[%emt 0:00:20]} 33. Rc1 {[%emt 0:01:15]} Rg8 {[%emt 0:00:57]} 34. Bb3 {[%emt 0:00:17]} Rd8 {[%emt 0:01:22]} 35. Rc7 {[%emt 0:00:56]} Rd7 {[%emt 0:00:29]} 36. Rxd7 {[%emt 0:03:52]} Nxd7 {[%emt 0:00:01]} 37. Kd3 {[%emt 0:00:06]} Kg7 {[%emt 0:00:49]} 38. Bd1 {[%emt 0:00:06]} b6 {[%emt 0:01:39]} 39. Bf3 {[%emt 0:01:10]} Nf6 {[%emt 0:01:51]} 40. Bb7 {[%emt 0:05:59]} Nd5 {[%emt 0:00:33]} 41. Bxd5 {[%emt 0:17:40]} exd5 {[%emt 0:00:00]} 42. Ke3 {[%emt 0:00:08]} Kf6 {[%emt 0:12:39]} 43. Kf4 {[%emt 0:00:15]} h6 {[%emt 0:01:05]} 44. f3 {[%emt 0:00:59]} b5 {[%emt 0:06:43]} 45. b4 {[%emt 0:00:18]} Ke6 {[%emt 0:03:16]} 46. g4 {[%emt 0:01:31]} f6 {[%emt 0:06:40]} 47. h4 {[%emt 0:00:50]} fxg4 {[%emt 0:01:06]} 48. fxg4 {[%emt 0:00:39]} f5 {[%emt 0:01:07]} 49. gxf5+ {[%emt 0:00:53]} Kf6 {[%emt 0:00:08]} 50. h5 {[%emt 0:00:14]} 1-0

[Event "NOR-chT Eliteserien 2018-19"]
[Site "Norway"]
[Date "2019.03.08"]
[Round "7.6"]
[White "Gudbrandsen, Gustav"]
[Black "Machlik, Monika"]
[Result "1-0"]
[ECO "B13"]
[WhiteElo "2241"]
[BlackElo "2071"]
[Annotator "RC"]
[PlyCount "142"]
[EventDate "2018.11.02"]
[EventType "team-tourn"]
[EventCountry "NOR"]
[SourceTitle "playchess.com"]
[Source "ChessBase"]
[SourceQuality "1"]
[TimeControl "40/5400+30:1800+30"]

1. e4 {[%emt 0:00:00]} c6 {[%emt 0:00:00]} 2. d4 {[%emt 0:00:25]} d5 {[%emt 0:00:02]} 3. exd5 {[%emt 0:00:48]} cxd5 {[%emt 0:00:05]} 4. Bd3 {[%emt 0:00:34]} Nc6 {[%emt 0:00:07]} 5. c3 {[%emt 0:00:28]} Nf6 {[%emt 0:00:19]} 6. Nf3 {[%emt 0:01:10]} Bg4 {[%emt 0:07:27]} 7. h3 {[%emt 0:01:00]} Bh5 {[%emt 0:00:45]} 8. Bf4 {[%emt 0:09:33]} e6 {[%emt 0:04:54]} 9. Qb3 {[%emt 0:04:51]} Qc8 {[%emt 0:01:44]} 10. Nbd2 {[%emt 0:00:50]} Be7 {[%emt 0:06:39]} 11. O-O {[%emt 0:01:42]} O-O {[%emt 0:01:19]} 12. Rfe1 {[%emt 0:02:55]} Bg6 {[%emt 0:06:04]} 13. Bxg6 {[%emt 0:01:12]} hxg6 {[%emt 0:00:11]} 14. a4 {[%emt 0:03:32]} Bd8 {[%emt 0:30:24]} 15. Bd6 {[%emt 0:08:27]} Re8 {[%emt 0:02:14]} 16. Rac1 {[%emt 0:05:02]} Bc7 {[%emt 0:05:16]} 17. Bxc7 {[%emt 0:03:32]} Qxc7 {[%emt 0:00:04]} 18. g3 {[%emt 0:09:59]} Rac8 {[%emt 0:02:23]} 19. Qc2 {[%emt 0:12:29]} Na5 {[%emt 0:07:06]} 20. Ne5 {[%emt 0:01:21]} Nc6 {[%emt 0:06:55]} 21. Qd3 {[%emt 0:05:19]} Nxe5 {[%emt 0:01:23]} 22. Rxe5 {[%emt 0:00:10]} Nd7 {[%emt 0:01:05]} 23. Ree1 {[%emt 0:00:24]} Nb6 {[%emt 0:02:27]} 24. b3 {[%emt 0:00:40]} Nd7 {[%emt 0:01:55]} 25. c4 {[%emt 0:06:22]} dxc4 {[%emt 0:01:30]} 26. Rxc4 {[%emt 0:03:02]} Qb8 {[%emt 0:01:18]} 27. Rec1 {[%emt 0:01:23]} Nb6 {[%emt 0:02:49]} 28. Rxc8 {[%emt 0:04:00]} Rxc8 {[%emt 0:00:10]} 29. Rc5 {[%emt 0:01:37]} Nd7 {[%emt 0:01:12]} 30. Rxc8+ {[%emt 0:01:03]} Qxc8 {[%emt 0:00:04]} 31. Nc4 {[%emt 0:01:25]} Nf6 {[%emt 0:01:16]} 32. Qf3 {[%emt 0:00:51]} Qd7 {[%emt 0:01:26]} 33. Qf4 {[%emt 0:00:55]} Qc8 {[%emt 0:04:20]} 34. g4 {[%emt 0:00:40]} Nd5 {[%emt 0:00:37]} 35. Qxf7+ {[%emt 0:01:14]} Kxf7 {[%emt 0:00:35]} 36. Nd6+ {[%emt 0:00:05]} Kf6 {[%emt 0:01:12]} 37. Nxc8 {[%emt 0:00:07]} Nf4 {[%emt 0:00:33]} 38. Nxa7 {[%emt 0:06:48]} Ne2+ {[%emt 0:00:06]} 39. Kg2 {[%emt 0:01:06]} Nxd4 {[%emt 0:00:19]} 40. b4 {[%emt 0:01:53]} Ke5 {[%emt 0:00:19]} 41. Nc8 {[%emt 0:02:13]} Kd5 {[%emt 0:20:18]} 42. Nb6+ {[%emt 0:00:06]} Kc6 {[%emt 0:04:10]} 43. Nc4 {[%emt 0:00:30]} Kd5 {[%emt 0:01:47]} 44. Ne3+ {[%emt 0:05:15]} Ke4 {[%emt 0:00:22]} 45. Nc4 {[%emt 0:10:07]} Kd5 {[%emt 0:02:54]} 46. Nb2 {[%emt 0:00:33]} Nc2 {[%emt 0:02:26]} 47. Nd3 {[%emt 0:01:08]} Kc4 {[%emt 0:01:52]} 48. Nc5 {[%emt 0:00:35]} b6 {[%emt 0:01:05]} 49. Nd7 {[%emt 0:00:19]} Kxb4 {[%emt 0:00:19]} 50. Nxb6 {[%emt 0:00:16]} Nd4 {[%emt 0:00:29]} 51. Nd7 {[%emt 0:00:47]} Kxa4 {[%emt 0:00:29]} 52. Ne5 {[%emt 0:00:32]} Kb5 {[%emt 0:00:33]} 53. Nxg6 {[%emt 0:00:17]} Kc5 {[%emt 0:00:38]} 54. Kg3 {[%emt 0:01:00]} Kd5 {[%emt 0:00:23]} 55. Nf4+ {[%emt 0:01:08]} Ke4 {[%emt 0:00:38]} 56. f3+ {[%emt 0:01:53]} Ke5 {[%emt 0:00:32]} 57. Nh5 {[%emt 0:01:54]} g6 {[%emt 0:00:19]} 58. Nf4 {[%emt 0:01:24]} g5 {[%emt 0:00:36]} 59. Nd3+ {[%emt 0:00:13]} Kf6 {[%emt 0:00:33]} 60. Kf2 {[%emt 0:01:05]} Nc2 {[%emt 0:00:28]} 61. Ke2 {[%emt 0:01:09]} Na3 {[%emt 0:00:18]} 62. Nc5 {[%emt 0:00:47]} Ke5 {[%emt 0:00:40]} 63. Nd3+ {[%emt 0:00:49]} Kd4 {[%emt 0:00:34]} 64. Nf2 {[%emt 0:02:00]} Ke5 {[%emt 0:00:30]} 65. Ne4 {[%emt 0:00:32]} Kf4 {[%emt 0:00:14]} 66. Kf2 {[%emt 0:00:22]} Nc2 {[%emt 0:00:44]} 67. Nc5 {[%emt 0:00:48]} Ke5 {[%emt 0:00:19]} 68. Kg3 {[%emt 0:00:34]} Ne3 {[%emt 0:00:33]} 69. Ne4 {[%emt 0:00:47]} Nf1+ {[%emt 0:00:43]} 70. Kf2 {[%emt 0:00:32]} Kf4 {[%emt 0:00:31]} 71. Kxf1 {[%emt 0:00:18]} e5 {[%emt 0:00:33]} 1-0

[Event "NOR-chT Eliteserien 2018-19"]
[Site "Norway"]
[Date "2019.03.08"]
[Round "7.8"]
[White "Djurhuus, Rune"]
[Black "Mihajlov, Sebastian"]
[Result "1/2-1/2"]
[ECO "D45"]
[WhiteElo "2457"]
[BlackElo "2363"]
[Annotator "RC"]
[PlyCount "81"]
[EventDate "2018.11.02"]
[EventType "team-tourn"]
[EventCountry "NOR"]
[SourceTitle "playchess.com"]
[Source "ChessBase"]
[SourceQuality "1"]
[TimeControl "40/5400+30:1800+30"]

1. d4 {[%emt 0:00:00]} d5 {[%emt 0:00:00]} 2. c4 {[%emt 0:00:28]} c6 {[%emt 0:00:05]} 3. Nf3 {[%emt 0:00:11]} Nf6 {[%emt 0:00:08]} 4. Nc3 {[%emt 0:00:08]} e6 {[%emt 0:02:56]} 5. e3 {[%emt 0:00:50]} Nbd7 {[%emt 0:00:07]} 6. Qc2 {[%emt 0:00:40]} Bd6 {[%emt 0:00:11]} 7. Bd2 {[%emt 0:01:33]} O-O {[%emt 0:00:41]} 8. e4 {[%emt 0:02:26]} dxe4 {[%emt 0:02:08]} 9. Nxe4 {[%emt 0:00:07]} Nxe4 {[%emt 0:00:05]} 10. Qxe4 {[%emt 0:00:03]} e5 {[%emt 0:04:39]} 11. dxe5 {[%emt 0:05:26]} Nxe5 {[%emt 0:00:34]} 12. O-O-O {[%emt 0:00:42]} Nxf3 {[%emt 0:01:04]} 13. Qxf3 {[%emt 0:00:34]} Be5 {[%emt 0:01:28]} 14. Bf4 {[%emt 0:06:26]} Bxf4+ {[%emt 0:03:33]} 15. Qxf4 {[%emt 0:00:06]} Qa5 {[%emt 0:00:05]} 16. a3 {[%emt 0:01:09]} Bf5 {[%emt 0:02:44]} 17. Bd3 {[%emt 0:01:11]} Bxd3 {[%emt 0:00:28]} 18. Rxd3 {[%emt 0:00:05]} Rae8 {[%emt 0:01:13]} 19. Rhd1 {[%emt 0:01:07]} Re2 {[%emt 0:01:57]} 20. Re3 {[%emt 0:01:57]} Rxe3 {[%emt 0:01:17]} 21. Qxe3 {[%emt 0:00:02]} h6 {[%emt 0:01:23]} 22. Rd7 {[%emt 0:04:45]} b6 {[%emt 0:04:50]} 23. g4 {[%emt 0:04:19]} Qa4 {[%emt 0:09:16]} 24. Qd3 {[%emt 0:12:32]} Re8 {[%emt 0:07:18]} 25. Kb1 {[%emt 0:03:15]} b5 {[%emt 0:07:36]} 26. cxb5 {[%emt 0:07:33]} cxb5 {[%emt 0:00:06]} 27. Rd4 {[%emt 0:01:31]} Qa5 {[%emt 0:00:54]} 28. Ka2 {[%emt 0:01:55]} Qb6 {[%emt 0:02:46]} 29. f3 {[%emt 0:05:40]} Qe6+ {[%emt 0:07:56]} 30. Kb1 {[%emt 0:03:03]} Qe1+ {[%emt 0:00:21]} 31. Ka2 {[%emt 0:00:05]} Qe6+ {[%emt 0:00:04]} 32. Qb3 {[%emt 0:01:31]} a6 {[%emt 0:03:28]} 33. Re4 {[%emt 0:06:36]} Qc6 {[%emt 0:00:58]} 34. Rxe8+ {[%emt 0:06:52]} Qxe8 {[%emt 0:00:08]} 35. Qd5 {[%emt 0:00:04]} g6 {[%emt 0:00:12]} 36. Qd6 {[%emt 0:02:34]} Qe2 {[%emt 0:00:23]} 37. Qxa6 {[%emt 0:02:47]} Qc4+ {[%emt 0:00:11]} 38. Kb1 {[%emt 0:00:15]} Qd3+ {[%emt 0:00:06]} 39. Ka2 {[%emt 0:00:25]} Qc4+ {[%emt 0:00:05]} 40. Ka1 {[%emt 0:00:13]} Qc1+ {[%emt 0:00:05]} 41. Ka2 {[%emt 0:30:04]} 1/2-1/2

[Event "NOR-chT Eliteserien 2018-19"]
[Site "Norway"]
[Date "2019.03.08"]
[Round "7.9"]
[White "Getz, Nicolai"]
[Black "Haug, Johannes"]
[Result "0-1"]
[ECO "C28"]
[WhiteElo "2392"]
[BlackElo "2402"]
[Annotator "RC"]
[PlyCount "60"]
[EventDate "2018.11.02"]
[EventType "team-tourn"]
[EventCountry "NOR"]
[SourceTitle "playchess.com"]
[Source "ChessBase"]
[SourceQuality "1"]
[TimeControl "40/5400+30:1800+30"]

1. e4 {[%emt 0:00:00]} e5 {[%emt 0:00:00]} 2. Bc4 {[%emt 0:00:42]} Nc6 {[%emt 0:00:58]} 3. Nc3 {[%emt 0:01:23]} Nf6 {[%emt 0:00:26]} 4. d3 {[%emt 0:00:23]} Na5 {[%emt 0:03:21]} 5. Qf3 {[%emt 0:00:11]} c6 {[%emt 0:03:41]} 6. Nge2 {[%emt 0:00:52]} d6 {[%emt 0:02:46]} 7. Bg5 {[%emt 0:04:20]} Be7 {[%emt 0:08:45]} 8. Ng3 {[%emt 0:07:18]} Bg4 {[%emt 0:11:47]} 9. Qe3 {[%emt 0:00:07]} h6 {[%emt 0:02:35]} 10. Bxf6 {[%emt 0:00:19]} Bxf6 {[%emt 0:00:23]} 11. f3 {[%emt 0:02:13]} Nxc4 {[%emt 0:07:10]} 12. dxc4 {[%emt 0:00:07]} Be6 {[%emt 0:00:08]} 13. Nf5 {[%emt 0:03:26]} g6 {[%emt 0:01:39]} 14. Ng3 {[%emt 0:01:18]} Bxc4 {[%emt 0:00:08]} 15. Rd1 {[%emt 0:02:03]} Be7 {[%emt 0:03:19]} 16. b3 {[%emt 0:03:10]} Be6 {[%emt 0:02:21]} 17. Qd3 {[%emt 0:00:21]} Qb6 {[%emt 0:02:33]} 18. Ke2 {[%emt 0:04:52]} Qa5 {[%emt 0:08:11]} 19. Nf1 {[%emt 0:00:58]} b5 {[%emt 0:02:19]} 20. Ne3 {[%emt 0:00:17]} Rd8 {[%emt 0:00:49]} 21. Kf2 {[%emt 0:09:20]} b4 {[%emt 0:03:13]} 22. Ne2 {[%emt 0:00:14]} O-O {[%emt 0:04:40]} 23. h4 {[%emt 0:03:02]} d5 {[%emt 0:02:30]} 24. h5 {[%emt 0:01:39]} Kg7 {[%emt 0:02:08]} 25. g4 {[%emt 0:05:20]} Qc5 {[%emt 0:01:23]} 26. f4 {[%emt 0:05:05]} dxe4 {[%emt 0:05:57]} 27. Qxe4 {[%emt 0:00:34]} Bd5 {[%emt 0:02:11]} 28. Qxe5+ {[%emt 0:06:44]} Bf6 {[%emt 0:01:09]} 29. Qc7 {[%emt 0:00:19]} Bxh1 {[%emt 0:00:32]} 30. Rxh1 {[%emt 0:00:09]} Rde8 {[%emt 0:00:17]} 0-1

[Event "NOR-chT Eliteserien 2018-19"]
[Site "Norway"]
[Date "2019.03.08"]
[Round "7.10"]
[White "Tryggestad, Andreas Garberg"]
[Black "Ogaard, Leif"]
[Result "0-1"]
[ECO "D36"]
[WhiteElo "2333"]
[BlackElo "2382"]
[Annotator "RC"]
[PlyCount "88"]
[EventDate "2018.11.02"]
[EventType "team-tourn"]
[EventCountry "NOR"]
[SourceTitle "playchess.com"]
[Source "ChessBase"]
[SourceQuality "1"]
[TimeControl "40/5400+30:1800+30"]

1. d4 {[%emt 0:00:00]} Nf6 {[%emt 0:03:26]} 2. c4 {[%emt 0:00:00]} e6 {[%emt 0:00:22]} 3. Nf3 {[%emt 0:00:00]} d5 {[%emt 0:03:46]} 4. Nc3 {[%emt 0:00:58]} Be7 {[%emt 0:00:40]} 5. Bg5 {[%emt 0:00:10]} O-O {[%emt 0:00:20]} 6. Qc2 {[%emt 0:00:07]} Nbd7 {[%emt 0:01:30]} 7. cxd5 {[%emt 0:00:30]} exd5 {[%emt 0:00:33]} 8. e3 {[%emt 0:00:20]} c6 {[%emt 0:00:16]} 9. Bd3 {[%emt 0:00:35]} Re8 {[%emt 0:00:14]} 10. h3 {[%emt 0:00:42]} Nf8 {[%emt 0:00:13]} 11. O-O-O {[%emt 0:00:49]} Be6 {[%emt 0:05:46]} 12. Bf4 {[%emt 0:01:01]} Rc8 {[%emt 0:03:37]} 13. Kb1 {[%emt 0:02:14]} b5 {[%emt 0:05:28]} 14. g4 {[%emt 0:00:20]} Qa5 {[%emt 0:00:56]} 15. Nd2 {[%emt 0:03:44]} a6 {[%emt 0:02:55]} 16. Bh2 {[%emt 0:07:21]} c5 {[%emt 0:06:27]} 17. dxc5 {[%emt 0:00:19]} Bxc5 {[%emt 0:00:26]} 18. Nb3 {[%emt 0:00:16]} Qb6 {[%emt 0:00:14]} 19. Nxc5 {[%emt 0:01:59]} Rxc5 {[%emt 0:00:07]} 20. Qd2 {[%emt 0:02:18]} Ne4 {[%emt 0:03:54]} 21. Bxe4 {[%emt 0:06:54]} dxe4 {[%emt 0:00:10]} 22. Qd4 {[%emt 0:15:31]} Qc6 {[%emt 0:03:04]} 23. Qd6 {[%emt 0:07:52]} Bc4 {[%emt 0:06:35]} 24. b4 {[%emt 0:03:16]} Bd3+ {[%emt 0:02:16]} 25. Rxd3 {[%emt 0:00:09]} exd3 {[%emt 0:00:14]} 26. Qxc6 {[%emt 0:17:44]} Rxc6 {[%emt 0:00:09]} 27. Nd5 {[%emt 0:00:53]} d2 {[%emt 0:12:01]} 28. Rd1 {[%emt 0:00:23]} Rh6 {[%emt 0:01:16]} 29. Bg3 {[%emt 0:09:49]} Rxh3 {[%emt 0:04:17]} 30. Nc7 {[%emt 0:00:22]} Re4 {[%emt 0:05:09]} 31. Nxa6 {[%emt 0:00:18]} Rh6 {[%emt 0:02:20]} 32. Nc7 {[%emt 0:00:13]} Rc6 {[%emt 0:07:19]} 33. Nd5 {[%emt 0:01:30]} Rc1+ {[%emt 0:00:46]} 34. Rxc1 {[%emt 0:00:07]} dxc1=Q+ {[%emt 0:00:10]} 35. Kxc1 {[%emt 0:00:03]} Rxg4 {[%emt 0:00:17]} 36. Kb2 {[%emt 0:08:22]} h5 {[%emt 0:00:22]} 37. a4 {[%emt 0:00:05]} bxa4 {[%emt 0:00:15]} 38. b5 {[%emt 0:00:02]} Nd7 {[%emt 0:00:20]} 39. Bf4 {[%emt 0:01:02]} Rg2 {[%emt 0:01:43]} 40. Bg3 {[%emt 0:00:28]} g5 {[%emt 0:01:23]} 41. b6 {[%emt 0:30:25]} Nxb6 {[%emt 0:30:22]} 42. Nxb6 {[%emt 0:00:11]} h4 {[%emt 0:00:37]} 43. Be5 {[%emt 0:00:17]} Rxf2+ {[%emt 0:00:09]} 44. Ka3 {[%emt 0:00:07]} g4 {[%emt 0:00:34]} 0-1